Cogmind - Beta 10.2 @@@ ROGUE MODE // 2021.08.20 @ 17:23:25 Player: youngster Result: Destroyed by as-17737 with Assembled Heavy Rifle Performance ------------- Evolutions (0) 0 Regions Visited (2) 400 Robots Destroyed (13) 65 Value Destroyed (325) 325 Prototype IDs (6) 120 Alien Tech Used (0) 0 Bonus (0) 0 TOTAL SCORE: 910 Bonus ------- None Cogmind --------- Core Integrity 0/250 Matter 268/300 Energy 160/160 System Corruption 0% Temperature Cool (0) Movement Treading (180) Ox1 Location -10/Mines Parts ------- > --- POWER (1) -------- Light Nuclear Core > --- PROPULSION (2) --- Light Treads Light Treads > --- UTILITY (2) ------ Large Storage Unit Large Storage Unit > --- WEAPON (2) ------- Shotgun Shotgun > --- INVENTORY (16) --- Light Ion Engine Light Treads Wheel Improved Heat Sink Seismic Analyzer Targeting Computer Decoy Drone Bay (16/16) Shotgun Shotgun Grenade Launcher Datajack Peak State ------------ > --- POWER ------------ Light Nuclear Core > --- PROPULSION ------- Light Treads Light Treads > --- UTILITY ---------- Decoy Drone Bay > --- WEAPON ----------- Shotgun Shotgun > --- INVENTORY -------- Light Treads Improved Heat Sink Shotgun Datajack [Rating: 23] Favorites ----------- Power Light Nuclear Core Engine Ion Engine Power Core Light Nuclear Core Propulsion Light Treads Treads Light Treads Utility Large Storage Unit Device Decoy Drone Bay Storage Large Storage Unit Weapon Shotgun Energy Gun EM Pulse Gun Ballistic Gun Shotgun Build | -11 -10 -10 ------- Run | Scr Mat Min Slots Evolved . | . . . Power . | . . . Propulsion . | . . . Utility . | . . . Weapon . | . . . Parts Attached 19 | 6 9 4 Power 2 | 1 1 . Engine 1 | 1 . . Core 1 | . 1 . Reactor . | . . . Propulsion 3 | 2 . 1 Treads 3 | 2 . 1 Leg . | . . . Wheel . | . . . Hover . | . . . Flight . | . . . Utility 6 | 1 2 3 Device 1 | . . 1 Storage 5 | 1 2 2 Processor . | . . . Hackware . | . . . Protection . | . . . Artifact . | . . . Weapon 8 | 2 6 . Energy Gun 4 | 1 3 . Energy Cannon . | . . . Ballistic Gun 4 | 1 3 . Ballistic Cannon . | . . . Launcher . | . . . Special Weapon . | . . . Impact Weapon . | . . . Slashing Weapon . | . . . Piercing Weapon . | . . . Special Melee Weapon . | . . . Unidentified Prototypes 1 | . . 1 Parts Lost 2 | . 2 . Power . | . . . Propulsion . | . . . Utility . | . . . Weapon 2 | . 2 . Highest Loss Streak 1 | . 1 . Average Slot Usage (%) 90 | . 89 98 Engine 6 | . 7 . Core 7 | . 6 14 Treads 28 | . 28 28 Storage 21 | . 19 26 Energy Gun 7 | . 9 . Ballistic Gun 18 | . 16 28 Naked Turns . | . . . Heaviest Build 43 | 13 43 43 Greatest Support 40 | 40 40 40 Greatest Overweight (x) 4 | 4 1 1 Average Overweight (x) . | . . . Largest Inventory Capacity 16 | 6 16 16 Average Capacity 10 | 5 10 15 Most Carried 12 | 2 11 12 Average Carried 7 | 1 6 11 Final Capacity 16 | 6 16 16 Final Carried 12 | 2 11 12 Class Distribution -------------------- 100% | Mutant Dominant Class ---------------- Mutant | -10/Materials Mutant | -10/Mines Resources | -11 -10 -10 ----------- Run | Scr Mat Min Matter Collected 509 | 260 233 16 Remotely . | . . . Salvage Created 442 | . 426 16 Parts 28 | . 24 4 Haulers Intercepted . | . . . Recyclers Shooed . | . . . Parts Field Recycled . | . . . Retrieved Matter . | . . . Parts Self-Destructed . | . . . Prevented . | . . . Kills | -11 -10 -10 ------- Run | Scr Mat Min Combat Hostiles Destroyed 11 | . 11 . Guns 10 | . 10 . AOE 1 | . 1 . Classes Destroyed 4 | . 3 1 Tunneler 1 | . . 1 Watcher 1 | . 1 . Swarmer 3 | . 3 . Grunt 8 | . 8 . Best Kill Streak 4 | . 4 1 Combat Bots Only 4 | . 4 . Max Kills in Single Turn 1 | . 1 1 Gunslinging . | . . . Exploded 1 | . 1 . Melee . | . . . Uniques/NPCs Destroyed . | . . . Combat | -11 -10 -10 -------- Run | Scr Mat Min Damage Taken 881 | . 749 132 Core 261 | . 206 55 Absorbed by Shields . | . . . Core Remaining (%) 100 | 100 . . Volleys Fired 50 | . 49 1 Largest 2 | . 2 2 Hottest 80 | . 80 46 Shots Fired 88 | . 86 2 Gun 88 | . 86 2 Cannon . | . . . Launcher . | . . . Special . | . . . Kinetic 47 | . 45 2 Thermal . | . . . Explosive . | . . . Electromagnetic 41 | . 41 . Robot Hit Streak 13 | . 13 8 Robot Miss Streak 1 | . 1 1 Penetration Max . | . . . Secondary Targets 2 | . 2 . Max Gunslinging Chain 1 | . 1 . Shots Hit Robots 70 | . 68 2 Core Hits 23 | . 22 1 Critical Hits . | . . . Critical Kills . | . . . Critical Parts Destroyed . | . . . Melee Attacks . | . . . Impact . | . . . Slashing . | . . . Piercing . | . . . Sneak Attacks . | . . . Combat Hostiles . | . . . Follow-up Attacks . | . . . Damage Inflicted 840 | . 808 32 Guns 777 | . 745 32 Cannons . | . . . Explosions 60 | . 60 . Melee . | . . . Ramming 3 | . 3 . Kinetic 360 | . 328 32 Thermal 60 | . 60 . Explosive . | . . . Electromagnetic 417 | . 417 . Impact . | . . . Slashing . | . . . Piercing . | . . . Highest Corruption . | . . . Average Corruption . | . . . Corruption Purged . | . . . Overload Shots . | . . . Overflow Damage . | . . . Projectiles . | . . . Explosions . | . . . Melee . | . . . Knockbacks . | . . . Impact . | . . . Kinetic . | . . . Secondary . | . . . Self-Inflicted Damage . | . . . Shots . | . . . Rammed 2 | . 2 . Targets Rammed 2 | . 2 . Kicked . | . . . Crushed . | . . . Highest Temperature 96 | . 96 4 Average Temperature 21 | . 21 4 Received Heat Transfer 395 | . 375 20 Siege Activations . | . . . Robots Corrupted . | . . . Combat Hostiles . | . . . Parts Fried 1 | . 1 . Impact Corruptions . | . . . Robots Melted . | . . . Combat Hostiles . | . . . Parts Melted . | . . . Heat Transferred 50 | . 50 . Parts Sabotaged . | . . . Parts Stolen . | . . . Parts Stripped . | . . . Power Chain Reactions 1 | . 1 . Missiles Intercepted . | . . . Alert | -11 -10 -10 ------- Run | Scr Mat Min Peak Influence 287 | . 287 50 Initial 30 | . . 30 Average 94 | . 115 32 Maximum Alert Level 1 | . 1 . Low Security (%) 79 | 100 73 100 Level 1 20 | . 26 . Level 2 . | . . . Level 3 . | . . . Level 4 . | . . . Level 5 . | . . . High Security . | . . . Max Security . | . . . Squads Dispatched 4 | . 4 . Investigation 4 | . 4 . Extermination . | . . . Reinforcement . | . . . Assault . | . . . Garrison . | . . . Intercept . | . . . Construction Impeded . | . . . Haulers Reinforced . | . . . Stealth | -11 -10 -10 --------- Run | Scr Mat Min Distress Signals 3 | . 3 . Communications Jammed . | . . . Distress Signals . | . . . Times Spotted 29 | . 19 10 Peak Tracking Total 12 | . 6 12 Tactical Retreats 1 | . 1 . Traps | -11 -10 -10 ------- Run | Scr Mat Min Traps Triggered . | . . . Indirectly . | . . . Trap Hack Attempts . | . . . Triggered . | . . . Disarmed . | . . . Reprogrammed . | . . . Reused . | . . . Traps Extracted . | . . . Installed . | . . . Triggered . | . . . Machines | -11 -10 -10 ---------- Run | Scr Mat Min Machines Disabled . | . . . Max in Single Turn . | . . . Machines Sabotaged . | . . . Garrisons Compromised . | . . . Overloaded Fab Kills . | . . . Fab Network Shutdowns . | . . . Hacking | -11 -10 -10 --------- Run | Scr Mat Min Machines Accessed 9 | . 8 1 Terminals 6 | . 6 . Fabricators . | . . . Repair Stations 1 | . 1 . Recycling Units 1 | . 1 . Scanalyzers . | . . . Garrison Access . | . . . Total Hacks 28 | . 27 1 Successful 15 | . 14 1 Failed 13 | . 13 . Catastrophic 3 | . 3 . Database Lockouts . | . . . Manual 10 | . 10 . Terminals 21 | . 21 . Fabricators . | . . . Repair Stations 4 | . 4 . Recycling Units 2 | . 2 . Scanalyzers . | . . . Garrison Access . | . . . Terminal Hacks 9 | . 8 1 Prototype ID Bank 3 | . 3 . Open Door 1 | . . 1 Branch Access Points 1 | . 1 . Unreport Threat 1 | . 1 . Hauler Manifests 1 | . 1 . Registered Components 1 | . 1 . Zone Layout 1 | . 1 . Fabricator Hacks . | . . . Repair Station Hacks 2 | . 2 . Scan Component 1 | . 1 . Repair 1 | . 1 . Recycling Unit Hacks . | . . . Scanalyzer . | . . . Garrison Access Hacks . | . . . Unauthorized Hacks 4 | . 4 . Terminals 3 | . 3 . Botnet 3 | . 3 . Fabricators . | . . . Repair Stations . | . . . Recycling Units 1 | . 1 . Tunnel 1 | . 1 . Scanalyzers . | . . . Garrison Access . | . . . Data Cores Recovered . | . . . Used . | . . . Hacking Detections 7 | . 7 . Full Trace Events 3 | . 3 . Feedback Events . | . . . Feedback Blocked . | . . . Robot Schematics Acquired . | . . . Robots Built . | . . . Matter . | . . . Time . | . . . Total Robot Build Rating . | . . . Part Schematics Acquired . | . . . Parts Built . | . . . Matter . | . . . Time . | . . . Total Part Build Rating . | . . . Parts Repaired 1 | . 1 . Time 26 | . 26 . Parts Recycled . | . . . Recycled Matter . | . . . Retrieved Matter . | . . . Retrieved Components . | . . . Parts Scanalyzed . | . . . Part Schematics Acquired . | . . . Parts Damaged . | . . . Bothacking | -11 -10 -10 ------------ Run | Scr Mat Min Used RIF Installer . | . . . Robots Hacked . | . . . Non-combat . | . . . Combat . | . . . Robot Hacks Applied . | . . . Relay Couplers Released . | . . . Robots Rewired . | . . . Allies Hacked . | . . . Hacks Repelled . | . . . Allies | -11 -10 -10 -------- Run | Scr Mat Min Total Allies . | . . . Largest Group . | . . . Highest-Rated Group . | . . . Highest-Rated Ally . | . . . Total Orders . | . . . Ally Attacks . | . . . Total Damage . | . . . Kills . | . . . Allies Corrupted . | . . . Allies Melted . | . . . Intel | -11 -10 -10 ------- Run | Scr Mat Min Robot Analysis Total . | . . . Derelict Logs Recovered 1 | . . 1 Drone Launches . | . . . Drone Recoveries . | . . . Exploration | -11 -10 -10 ------------- Run | Scr Mat Min Turns Passed 1038 | 54 796 188 Spaces Moved 479 | 32 353 94 Core 14 | 14 . . Treads 465 | 18 353 94 Legs . | . . . Wheels . | . . . Hover . | . . . Flight . | . . . Fastest Speed 50 | 50 160 160 Average Speed 168 | 138 168 179 Slowest Speed 250 | 250 180 180 Overloaded Moves . | . . . Propulsion Burnouts . | . . . Robots Hopped . | . . . Cave-ins Triggered . | . . . Exploration Rate (%) 27 | 5 54 22 Regions Visited 2 Branch Regions 1 Pre-discovered Areas 1 | . 1 . Known Exits Taken 1 | . 1 . Unknown Exits Taken 1 | 1 . . Scrap Searched . | . . . Spaces Dug . | . . . Terrain Destroyed 6 | . 6 . Melee . | . . . Projectile . | . . . AOE 6 | . 6 . Terrain Rammed . | . . . Walls Destroyed . | . . . Machines Disabled . | . . . Actions | -11 -10 -10 --------- Run | Scr Mat Min Total 613 | 39 464 110 Wait 41 | . 40 1 Move 477 | 31 352 94 Hop . | . . . Pick Up 17 | 2 8 7 Fast Attach 14 | 6 5 3 Attach 1 | . 1 . Detach 2 | . 2 . Swap 4 | . 3 1 Drop 5 | . 2 3 Fire 50 | . 49 1 Melee . | . . . Ram . | . . . Kick . | . . . Crush 2 | . 2 . Escape Stasis . | . . . Rewire . | . . . Trap . | . . . Miscellaneous . | . . . Route ------- -11/Scrapyard -10/Materials (discovered 3 exits: [*Mat] / *Min x2) -10/Mines History --------- Turn | Location | Event 20 | -11/Scrapyard | Discovered new exit (range 15) 55 | -11/Scrapyard | Entered Materials 133 | -10/Materials | Discovered new exit (range 13) 279 | -10/Materials | Discovered new exit (range 5) 319 | -10/Materials | Build established: Mutant 445 | -10/Materials | Repaired EM Pulse Gun 447 | -10/Materials | Core integrity fell below 50% 562 | -10/Materials | Core integrity fell below 20% 607 | -10/Materials | Identified exit to Mines 851 | -10/Materials | Entered Mines 858 | -10/Mines | Found the Drone Emporium 866 | -10/Mines | Found Prototype Device 866 | -10/Mines | Identified Decoy Drone Bay 1010 | -10/Mines | Learned 4 Materials zone layouts 1022 | -10/Mines | Assembled infested the area 1027 | -10/Mines | Assisted by a Guerilla fighting off Assembled 1039 | -10/Mines | Destroyed by as-17737 with Assembled Heavy Rifle Last Messages --------------- 00866_ Acquired Prototype Device. 00866_ Identified Decoy Drone Bay. 00868_ Dropped Decoy Drone Bay. 00870_ Acquired Lrg. Storage Unit. 00876_ Acquired Decoy Drone Bay. 00879_ Acquired Shotgun. 00882_ Acquired Grenade Launcher. 00884_ Acquired Seismic Analyzer. 00887_ Acquired Wheel. 00890_ Acquired Targeting Computer. 00893_ Acquired Lgt. Ion Engine. 00989_ T-07 Excavator destroyed. 00992_ Acquired 16 matter. 01010_ Acquired derelict log, extracted data. Data stored: Materials zone layouts (x4). 01022_ ALERT: Infestation in the mines, dispatching Demolisher response squad. 01027_ A derelict emerges from the shadows: "You need to get out of here! I've been tracking a group of Assembled to figure out where they're coming from, and they're closing on this area, come on!" Map ----- +----------------------------------------------------+ | ?????????????????????????????????????????????????? | | ?????????????????????????????????????????????????? | | ?????????????????????????????????????????????????? | | ?????????????????????????????????????????????????? | | ?????????????????????????????????????????????????? | | ?????????????????????????????????????????????????? | | ?????????????????????????????????????????????????? | | ?????????????????????????????????????????????????? | | ?????????????????????????????????????????????????? | | ?????????????????????????????????????????????????? | | ?????????????????????????????????????????????????? | | ?????????????????????????????????????????????????? | | ?????????????????????????????????????????????????? | | ?????????????????????????????????????????????????? | | ?????????????????????????????????????????????????? | | ?????????????????????????????????????????????????? | | ?????????????????????????????????????????????????? | | ?????????????????????????????????????????????????? | | ?????????????????????????????????????????????????? | | ????????????????????????????????????????????#????? | | ????????????????????????????########### #????? | | ??????????????????????####??# ??? | | ?????????????????????## ##?# #????? | | ???????????# ???????## ### ######## #?????? | | ????????????# ?????## #??????????????????? | | ?????????????# ??## @###=#??????????????????? | | ?????????????# ## aa#?#|#??????????????????? | | ?????????????# a a aaa ##?# #??????????????????? | | ?????????????# a aa #??#!#??????????????????? | | ?????????????# #??#=########???????????? | | ?????????????# #??# #???????????? | | ?????????????## #??######## #???????????? | | ??????????????# #?????????# #???????????? | | ??????????????## ##?????????# #???????????? | | ???????????????## #??????????# #???????????? | | ????????????????## #??????????# #???????????? | | ?????????????????## #??????????# #???????????? | | ??????????????????## ##?????????# #???????????? | | ??????????????####?# ##????????# #???????????? | | ????????????## #### #??????### #???????????? | | ?????######## #????## ##??????????? | | ????##""## #????# ##?????????? | | ????#" [# ## #?????# ##????????? | | ????#" ## ###??????## ##???????? | | ????#" ### #???####??## #???????? | | ????#" #X ###### ##### ##??## #???????? | | ????##""## ##?# ##### ##???????? | | ?????##### #### ## ## ##????????? | | ?????????## ######### ##?????????? | | ??????????# #####???????## #??????????? | +----------------------------------------------------+ Best States ------------- Heat Dissipation 25 Energy Generation 14 Energy Capacity 250 Matter Stores 300 Matter Capacity 300 Sight Range 16 Terrain Scan Density 10 Evasion (%) 40 Recoil Reduction 2 Item Schematics ----------------- None Robot Schematics ------------------ None Fabricated ------------ Nothing Alien Tech Used ----------------- None Achievements -------------- Quantum Hacking Challenges ------------ None Game ------ Seed TerrabombMakeshiftBattery Manual? 0 Play Time 00:35:15 Cumulative 70.2 hours Start 2021.08.20 @ 16:42:11 End 2021.08.20 @ 17:23:25 Sessions 1 Manual Loads 0 Difficulty Rogue Special Mode None Game No. 47 Rogue 47 Adventurer 0 Explorer 0 Win Type - Total 0 Types 0/0/0/0/0/0/0/0/0 Lore% 49 Gallery% 67 Achievement% 39 Wizard Run 0 Options --------- ASCII 0 Keyboard 1 Movement Vi Keybinds 0 Fullscreen 2 Font 18/Cog Map View 76x50 Tactical HUD 1 Map Filters NONE Filters NONE Steam 0 RUN: 1e0cf923-fcc9-49bd-b6ca-c44512e49922